fUST/lending_fUST_20260622
["ID","MTS","AMOUNT","RATE_DAILY","PERIOD"]
[425970359,1782061847000,-14843.44463625,0.00019841,3]
[425970340,1782061847000,-219.22068512,0.00019762,2]
[425970331,1782061847000,-151.0,0.00019741,2]
[425970327,1782061847000,-300.0,0.00019662,2]
[425970335,1782061847000,-801.85007836,0.00019762,2]
[425970337,1782061847000,-567.96430614,0.00019762,2]
[425970338,1782061847000,-1071.09008763,0.00019762,2]
[425970336,1782061847000,-528.89583395,0.00019762,2]
[425970346,1782061847000,-487.97727013,0.00019772,2]
[425970341,1782061847000,-506.68718868,0.00019762,2]
[425970339,1782061847000,-568.31382746,0.00019762,2]
[425970357,1782061847000,-22049.07941331,0.00019841,3]
[425970344,1782061847000,-564.79363809,0.00019762,2]
[425970342,1782061847000,-503.11724572,0.00019762,2]
[425970345,1782061847000,-524.67365147,0.00019772,2]
[425970343,1782061847000,-530.76058712,0.00019762,2]
[425970348,1782061847000,-500.0,0.00019795,2]
[425970382,1782061847000,-500.0,0.00019999,2]
[425970349,1782061847000,-203.32006478,0.00019798,2]
[425970351,1782061847000,-2172.60283677,0.00019798,2]
[425970356,1782061847000,-500.0,0.0001984,2]
[425970353,1782061847000,-500.0,0.0001984,2]
[425970350,1782061847000,-1314.54448679,0.00019798,2]
[425970352,1782061847000,-500.0,0.0001984,2]
[425970355,1782061847000,-500.0,0.0001984,2]
[425970326,1782061847000,-525.6,0.00019652,3]
[425970329,1782061847000,-500.0,0.00019733,2]
[425970390,1782061848000,-34142.59156478,0.0002,2]
[425970387,1782061848000,-165725.90120793,0.0002,2]
[425970388,1782061848000,-500.0,0.0002,5]
[425970384,1782061848000,-500.0,0.00019999,2]
[425970391,1782061848000,-8837.31054791,0.0002,2]
[425970386,1782061848000,-382.50333987,0.00019999,2]
[425970385,1782061848000,-500.0,0.00019999,2]
[425970389,1782061848000,-24000.0,0.0002,2]
[425980005,1782063032000,-302.0,0.0001457,2]
[425980006,1782063032000,-100.34556514,0.00014717,2]
[425980289,1782063041000,-0.92274603,0.00018487,2]
[425980287,1782063041000,-4899.65443486,0.00014717,2]
[425980599,1782063043000,-1628.17834573,0.00018303,2]
[425980603,1782063043000,-159.07725397,0.00018487,2]
[425980613,1782063043000,-227.7341098,0.00018489,2]
[425980618,1782063043000,-53.18024115,0.00018489,2]
[425980605,1782063043000,-185.71781631,0.00018489,2]
[425980620,1782063043000,-320.02873528,0.00018489,2]
[425980607,1782063043000,-189.63914749,0.00018489,2]
[425980611,1782063043000,-11.84897422,0.00018489,2]
[425980609,1782063043000,-172.72846228,0.00018489,2]
[425980615,1782063043000,-100.78721273,0.00018489,2]
[425980621,1782063044000,-170.38929184,0.00018489,2]
[425980623,1782063044000,-180.06301426,0.00018489,2]
[425980625,1782063044000,-182.76930734,0.00018489,2]
[425980627,1782063044000,-189.95642065,0.00018489,2]
[425980637,1782063044000,-345.45692457,0.0001926,2]
[425980631,1782063044000,-186.0,0.00019171,2]
[425980629,1782063044000,-551.0,0.00019,2]
[425980634,1782063044000,-371.43563263,0.0001926,2]
[425980642,1782063044000,-523.42852657,0.0001926,2]
[425980639,1782063044000,-479.16616804,0.0001926,2]
[425980640,1782063044000,-307.93490777,0.0001926,2]
[425980635,1782063044000,-379.27829498,0.0001926,2]
[425980961,1782063046000,-360.12602851,0.0001926,2]
[425980959,1782063046000,-340.77858368,0.0001926,2]
[425980967,1782063046000,-551.0,0.00019452,2]
[425980965,1782063046000,-379.91284131,0.0001926,2]
[425980963,1782063046000,-365.53861469,0.0001926,2]
[425980957,1782063046000,-116.62894398,0.0001926,2]
[425980991,1782063047000,-518.18538685,0.00019774,2]
[425980986,1782063047000,-557.15344894,0.00019774,2]
[425980988,1782063047000,-568.91744247,0.00019774,2]
[425980978,1782063047000,-3010.20025607,0.00019771,2]
[425980982,1782063047000,-206.355,0.00019773,2]
[425980976,1782063047000,-566.52831765,0.00019771,2]
[425980968,1782063047000,-326.5769733,0.00019556,2]
[425980974,1782063047000,-2092.50935385,0.00019771,2]
[425980972,1782063047000,-551.0,0.00019726,2]
[425980970,1782063047000,-2968.55552483,0.00019675,2]
[425980995,1782063047000,-461.90236165,0.00019774,2]
[425980984,1782063047000,-500.0,0.00019773,2]
[425980997,1782063047000,-960.08620583,0.00019774,2]
[425980980,1782063047000,-884.31529583,0.00019771,2]
[425980999,1782063047000,-511.16787552,0.00019774,2]
[425980993,1782063047000,-718.74925205,0.00019774,2]
[425981027,1782063047000,-745.2003503,0.000198,2]
[425981017,1782063047000,-595.5958337,0.000198,2]
[425981023,1782063047000,-226835.93293649,0.000198,2]
[425981014,1782063047000,-12315.87949661,0.000198,2]
[425981012,1782063047000,-3357.67123893,0.000198,2]
[425981025,1782063047000,-7855.68216755,0.000198,2]
[425981010,1782063047000,-205.05343371,0.00019783,2]
[425981009,1782063047000,-251.0193947,0.00019774,2]
[425981007,1782063047000,-569.86926196,0.00019774,2]
[425981005,1782063047000,-548.30792203,0.00019774,2]
[425981003,1782063047000,-540.18904277,0.00019774,2]
[425981001,1782063047000,-252.58392332,0.00019774,2]
[425981033,1782063047000,-92456.52670195,0.000198,2]
[425982155,1782064232000,-185.45582266,0.00018493,2]
[425982149,1782064232000,-286.86212089,0.00018493,2]
[425982147,1782064232000,-168.08113715,0.00018493,2]
[425982145,1782064232000,-214.7535644,0.00018493,2]
[425982141,1782064232000,-160.56508034,0.00017725,2]
[425982144,1782064232000,-162.05671283,0.00018493,2]
[425982138,1782064232000,-5000.0,0.00016392,2]
[425982151,1782064232000,-199.40228699,0.00018493,2]
[425982142,1782064232000,-164.11410433,0.00017918,2]
[425982153,1782064232000,-193.43193044,0.00018493,2]
[425982140,1782064232000,-2947.02497224,0.00016558,2]
[425982159,1782064232000,-170.96077859,0.00018533,2]
[425982157,1782064232000,-194.0835978,0.00018493,2]
[425982174,1782064232000,-388.1671956,0.00019265,2]
[425982172,1782064232000,-370.91164533,0.00019265,2]
[425982170,1782064232000,-386.86386088,0.00019265,2]
[425982176,1782064232000,-341.92155717,0.00019306,2]
[425982166,1782064232000,-573.72424178,0.00019265,2]
[425982164,1782064232000,-336.16227431,0.00019265,2]
[425982162,1782064232000,-429.5071288,0.00019265,2]
[425982160,1782064232000,-324.11342566,0.00019265,2]
[425982168,1782064232000,-398.80457398,0.00019265,2]
[425982188,1782064233000,-1246.35568708,0.000195,2]
[425982186,1782064233000,-192.12,0.00019492,2]
[425982180,1782064233000,-1418.0,0.00019415,2]
[425982184,1782064233000,-151.718,0.00019415,2]
[425982178,1782064233000,-190.48,0.00019408,2]
[425982193,1782064233000,-160.0,0.00019577,2]
[425982182,1782064233000,-445.0,0.00019415,2]
[425982197,1782064233000,-219.121165,0.00019577,2]
[425982199,1782064233000,-194.95,0.00019595,2]
[425982201,1782064233000,-500.0,0.00019597,2]
[425982205,1782064233000,-480.63142219,0.00019597,2]
[425982195,1782064233000,-189.560582,0.00019577,2]
[425982203,1782064233000,-508.14369438,0.00019597,2]
[425982191,1782064233000,-1351.13039712,0.000195,2]
[425982284,1782064238000,-500.0,0.00019597,2]
[425982282,1782064238000,-500.0,0.00019597,2]
[425982281,1782064238000,-166.99536966,0.00019597,2]
[425982283,1782064238000,-500.0,0.00019597,2]
[425982280,1782064238000,-500.0,0.00019597,2]
[425982279,1782064238000,-500.0,0.00019597,2]
[425982286,1782064238000,-500.0,0.00019597,2]
[425982278,1782064238000,-500.0,0.00019597,2]
[425982273,1782064238000,-500.0,0.00019597,2]
[425982276,1782064238000,-500.0,0.00019597,2]
[425982275,1782064238000,-500.0,0.00019597,2]
[425982274,1782064238000,-500.0,0.00019597,2]
[425982271,1782064238000,-500.0,0.00019597,2]
[425982272,1782064238000,-500.0,0.00019597,2]
[425982270,1782064238000,-500.0,0.00019597,2]
[425982269,1782064238000,-500.0,0.00019597,2]
[425982268,1782064238000,-19.36857781,0.00019597,2]
[425982277,1782064238000,-500.0,0.00019597,2]
[425982285,1782064238000,-487.78404723,0.00019597,2]
[425982295,1782064238000,-500.0,0.00019599,2]
[425982287,1782064238000,-500.0,0.00019597,2]
[425982292,1782064238000,-500.0,0.00019599,2]
[425982306,1782064238000,-4971.68155831,0.000196,2]
[425982297,1782064238000,-500.0,0.00019599,2]
[425982302,1782064238000,-7670.17921266,0.000196,2]
[425982299,1782064238000,-500.0,0.00019599,2]
[425982300,1782064238000,-852331.87546702,0.000196,2]
[425982301,1782064238000,-79391.1004018,0.000196,2]
[425982305,1782064238000,-167033.97818587,0.000196,2]
[425982303,1782064238000,-51440.74913332,0.000196,2]
[425982304,1782064238000,-23623.95552117,0.000196,2]
[425982296,1782064238000,-500.0,0.00019599,2]
[425982294,1782064238000,-500.0,0.00019599,2]
[425982293,1782064238000,-500.0,0.00019599,2]
[425982291,1782064238000,-500.0,0.00019599,2]
[425982289,1782064238000,-167.55204942,0.00019597,2]
[425982290,1782064238000,-420.28367572,0.00019599,2]
[425982288,1782064238000,-500.0,0.00019597,2]
[425982298,1782064238000,-500.0,0.00019599,2]
[425982317,1782064240000,-151.0,0.000196,2]
[425982318,1782064240000,-151.0,0.000196,2]
[425982321,1782064240000,-289.79628313,0.000196,2]
[425982315,1782064240000,-262152.83133459,0.000196,2]
[425982316,1782064240000,-151.0,0.000196,2]
[425982319,1782064240000,-151.0,0.000196,2]
[425982322,1782064240000,-34397.12982297,0.000196,2]
[425982320,1782064240000,-202375.49983598,0.000196,2]
[425982335,1782064246000,-1836.46956948,0.00019404,2]
[425982342,1782064382000,-544.9647562,0.00022124,120]
[425982357,1782064653000,41491.41719357,7.6e-05,2]
[425982361,1782064853000,-4966.13163003,0.00011384,2]
[425982362,1782064871000,-500.0,0.00011499,2]
[425982364,1782064888000,-240.77726329,0.00011499,2]
[425982365,1782064904000,-276.42044969,0.00011499,2]
[425982366,1782064921000,-500.0,0.00011499,2]
[425982368,1782064938000,-500.0,0.00011499,2]
[425982369,1782064955000,-308.64224062,0.00011499,2]
[425982596,1782065440000,-500.0,0.00016438,2]
[425982587,1782065440000,-27473.55670406,0.000115,2]
[425982594,1782065440000,-2272.80032366,0.0001537,2]
[425982595,1782065440000,-796.94534892,0.00016,2]
[425982593,1782065440000,-173.508458,0.00015047,2]
[425982589,1782065440000,-2272.80032371,0.000124,2]
[425982581,1782065440000,-433.45811007,0.000115,2]
[425982592,1782065440000,-2272.80032366,0.00013885,2]
[425982588,1782065440000,-10954.19314635,0.00012,2]
[425982591,1782065440000,-380.44000851,0.00013365,14]
[425982583,1782065440000,-380.44000851,0.000115,2]
[425982584,1782065440000,-1421.7102,0.000115,2]
[425982597,1782065440000,-500.0,0.00016438,2]
[425982590,1782065440000,-11099.6169041,0.000125,2]
[425982599,1782065440000,-500.0,0.00016438,2]
[425982615,1782065440000,-500.0,0.00016438,2]
[425982598,1782065440000,-500.0,0.00016438,2]
[425982601,1782065440000,-500.0,0.00016438,2]
[425982614,1782065440000,-500.0,0.00016438,2]
[425982610,1782065440000,-500.0,0.00016438,2]
[425982611,1782065440000,-500.0,0.00016438,2]
[425982612,1782065440000,-500.0,0.00016438,2]
[425982608,1782065440000,-500.0,0.00016438,2]
[425982609,1782065440000,-500.0,0.00016438,2]
[425982613,1782065440000,-500.0,0.00016438,2]
[425982607,1782065440000,-500.0,0.00016438,2]
[425982602,1782065440000,-500.0,0.00016438,2]
[425982605,1782065440000,-303.57502107,0.00016438,2]
[425982600,1782065440000,-500.0,0.00016438,2]
[425982604,1782065440000,-500.0,0.00016438,2]
[425982606,1782065440000,-500.0,0.00016438,2]
[425982603,1782065440000,-500.0,0.00016438,2]
[425982659,1782065441000,-500.0,0.00016712,2]
[425982657,1782065441000,-421.23887517,0.00016712,2]
[425982658,1782065441000,-500.0,0.00016712,2]
[425982655,1782065441000,-500.0,0.00016712,2]
[425982649,1782065441000,-500.0,0.00016712,2]
[425982647,1782065441000,-500.0,0.00016438,2]
[425982644,1782065441000,-500.0,0.00016438,2]
[425982651,1782065441000,-500.0,0.00016712,2]
[425982654,1782065441000,-500.0,0.00016712,2]
[425982645,1782065441000,-500.0,0.00016438,2]
[425982660,1782065441000,-500.0,0.00016712,2]
[425982646,1782065441000,-500.0,0.00016438,2]
[425982664,1782065441000,-278.79,0.00016712,2]
[425982669,1782065441000,-500.0,0.00016712,2]
[425982662,1782065441000,-500.0,0.00016712,2]
[425982666,1782065441000,-500.0,0.00016712,2]
[425982663,1782065441000,-453.5,0.00016712,2]
[425982665,1782065441000,-500.0,0.00016712,2]
[425982667,1782065441000,-500.0,0.00016712,2]
[425982648,1782065441000,-294.19857301,0.00016711,2]
[425982670,1782065441000,-500.0,0.00016712,2]
[425982668,1782065441000,-500.0,0.00016712,2]
[425982671,1782065441000,-500.0,0.00016712,2]
[425982672,1782065441000,-500.0,0.00016712,2]
[425982673,1782065441000,-343.79336589,0.00016712,2]
[425982674,1782065441000,-500.0,0.00016712,2]
[425982675,1782065441000,-500.0,0.00016712,2]
[425982661,1782065441000,-500.0,0.00016712,2]
[425982643,1782065441000,-500.0,0.00016438,2]
[425982638,1782065441000,-500.0,0.00016438,2]
[425982650,1782065441000,-500.0,0.00016712,2]
[425982616,1782065441000,-500.0,0.00016438,2]
[425982617,1782065441000,-375.2,0.00016438,2]
[425982619,1782065441000,-500.0,0.00016438,2]
[425982620,1782065441000,-500.0,0.00016438,2]
[425982618,1782065441000,-500.0,0.00016438,2]
[425982622,1782065441000,-500.0,0.00016438,2]
[425982621,1782065441000,-500.0,0.00016438,2]
[425982626,1782065441000,-500.0,0.00016438,2]
[425982623,1782065441000,-500.0,0.00016438,2]
[425982627,1782065441000,-500.0,0.00016438,2]
[425982625,1782065441000,-500.0,0.00016438,2]
[425982624,1782065441000,-500.0,0.00016438,2]
[425982628,1782065441000,-500.0,0.00016438,2]
[425982653,1782065441000,-500.0,0.00016712,2]
[425982629,1782065441000,-500.0,0.00016438,2]
[425982631,1782065441000,-500.0,0.00016438,2]
[425982633,1782065441000,-500.0,0.00016438,2]
[425982634,1782065441000,-500.0,0.00016438,2]
[425982635,1782065441000,-500.0,0.00016438,2]
[425982632,1782065441000,-500.0,0.00016438,2]
[425982639,1782065441000,-440.95,0.00016438,2]
[425982641,1782065441000,-500.0,0.00016438,2]
[425982637,1782065441000,-500.0,0.00016438,2]
[425982676,1782065441000,-500.0,0.00016712,2]
[425982640,1782065441000,-500.0,0.00016438,2]
[425982636,1782065441000,-401.46149858,0.00016438,2]
[425982642,1782065441000,-500.0,0.00016438,2]
[425982652,1782065441000,-500.0,0.00016712,2]
[425982630,1782065441000,-500.0,0.00016438,2]
[425982678,1782065441000,-280.29177302,0.00016712,2]
[425982656,1782065441000,-500.0,0.00016712,2]
[425982677,1782065441000,-500.0,0.00016712,2]
[425982711,1782065441000,-500.0,0.00016986,2]
[425982710,1782065441000,-500.0,0.00016986,2]
[425982712,1782065441000,-500.0,0.00016986,2]
[425982715,1782065441000,-500.0,0.00016986,2]
[425982716,1782065441000,-500.0,0.00016986,2]
[425982718,1782065441000,-500.0,0.00016986,2]
[425982717,1782065441000,-500.0,0.00016986,2]
[425982719,1782065441000,-500.0,0.00016986,2]
[425982720,1782065441000,-500.0,0.00016986,2]
[425982722,1782065441000,-500.0,0.00016986,2]
[425982721,1782065441000,-500.0,0.00016986,2]
[425982723,1782065441000,-500.0,0.00016986,2]
[425982725,1782065441000,-500.0,0.00016986,2]
[425982714,1782065441000,-500.0,0.00016986,2]
[425982727,1782065441000,-500.0,0.00016986,2]
[425982728,1782065441000,-500.0,0.00016986,2]
[425982724,1782065441000,-500.0,0.00016986,2]
[425982729,1782065441000,-500.0,0.00016986,2]
[425982730,1782065441000,-500.0,0.00016986,2]
[425982732,1782065441000,-500.0,0.00016986,2]
[425982733,1782065441000,-500.0,0.00016986,2]
[425982734,1782065441000,-500.0,0.00016986,2]
[425982738,1782065441000,-500.0,0.0001726,2]
[425982735,1782065441000,-500.0,0.0001726,2]
[425982731,1782065441000,-500.0,0.00016986,2]
[425982736,1782065441000,-569.64013685,0.0001726,2]
[425982737,1782065441000,-317.25,0.0001726,2]
[425982688,1782065441000,-500.0,0.00016712,2]
[425982726,1782065441000,-500.0,0.00016986,2]
[425982713,1782065441000,-500.0,0.00016986,2]
[425982739,1782065441000,-547.74,0.0001726,2]
[425982707,1782065441000,-500.0,0.00016986,2]
[425982686,1782065441000,-500.0,0.00016712,2]
[425982681,1782065441000,-500.0,0.00016712,2]
[425982684,1782065441000,-500.0,0.00016712,2]
[425982680,1782065441000,-500.0,0.00016712,2]
[425982683,1782065441000,-500.0,0.00016712,2]
[425982682,1782065441000,-500.0,0.00016712,2]
[425982679,1782065441000,-500.0,0.00016712,2]
[425982704,1782065441000,-500.0,0.00016986,2]
[425982687,1782065441000,-500.0,0.00016712,2]
[425982689,1782065441000,-500.0,0.00016712,2]
[425982700,1782065441000,-500.0,0.00016986,2]
[425982691,1782065441000,-500.0,0.00016712,2]
[425982690,1782065441000,-500.0,0.00016712,2]
[425982693,1782065441000,-500.0,0.00016712,2]
[425982685,1782065441000,-500.0,0.00016712,2]
[425982696,1782065441000,-500.0,0.00016712,2]
[425982698,1782065441000,-500.0,0.00016986,2]
[425982708,1782065441000,-500.0,0.00016986,2]
[425982709,1782065441000,-563.1906076,0.00016986,2]
[425982705,1782065441000,-500.0,0.00016986,2]
[425982703,1782065441000,-500.0,0.00016986,2]
[425982702,1782065441000,-500.0,0.00016986,2]
[425982706,1782065441000,-500.0,0.00016986,2]
[425982699,1782065441000,-500.0,0.00016986,2]
[425982692,1782065441000,-500.0,0.00016712,2]
[425982697,1782065441000,-2272.80032366,0.00016855,2]
[425982695,1782065441000,-500.0,0.00016712,2]
[425982694,1782065441000,-500.0,0.00016712,2]
[425982701,1782065441000,-500.0,0.00016986,2]
[425982784,1782065442000,-500.0,0.00017808,2]
[425982785,1782065442000,-500.0,0.00017808,2]
[425982781,1782065442000,-500.0,0.00017808,2]
[425982783,1782065442000,-500.0,0.00017808,2]
[425982792,1782065442000,-500.0,0.00017808,2]
[425982773,1782065442000,-500.0,0.00017534,2]
[425982779,1782065442000,-179.6,0.00017808,2]
[425982772,1782065442000,-500.0,0.00017534,2]
[425982776,1782065442000,-500.0,0.00017534,2]
[425982771,1782065442000,-500.0,0.00017534,2]
[425982777,1782065442000,-500.0,0.00017534,2]
[425982782,1782065442000,-500.0,0.00017808,2]
[425982786,1782065442000,-323.68055183,0.00017808,2]
[425982800,1782065442000,-518.13,0.00018082,2]
[425982790,1782065442000,-500.0,0.00017808,2]
[425982789,1782065442000,-500.0,0.00017808,2]
[425982788,1782065442000,-352.72,0.00017808,2]
[425982791,1782065442000,-500.0,0.00017808,2]
[425982793,1782065442000,-500.0,0.00018082,2]
[425982795,1782065442000,-500.0,0.00018082,2]
[425982806,1782065442000,-173.508458,0.00018215,2]
[425982809,1782065442000,-2272.80032366,0.00018339,2]
[425982813,1782065442000,-203.62542516,0.00018544,2]
[425982815,1782065442000,-154.7747138,0.00018544,2]
[425982794,1782065442000,-500.0,0.00018082,2]
[425982797,1782065442000,-500.0,0.00018082,2]
[425982775,1782065442000,-500.0,0.00017534,2]
[425982787,1782065442000,-500.0,0.00017808,2]
[425982774,1782065442000,-500.0,0.00017534,2]
[425982764,1782065442000,-500.0,0.00017534,2]
[425982778,1782065442000,-500.0,0.00017534,2]
[425982804,1782065442000,-230.85758096,0.00018176,2]
[425982741,1782065442000,-500.0,0.0001726,2]
[425982740,1782065442000,-503.4128567,0.0001726,2]
[425982743,1782065442000,-500.0,0.0001726,2]
[425982742,1782065442000,-500.0,0.0001726,2]
[425982745,1782065442000,-500.0,0.0001726,2]
[425982744,1782065442000,-500.0,0.0001726,2]
[425982746,1782065442000,-500.0,0.0001726,2]
[425982747,1782065442000,-500.0,0.0001726,2]
[425982748,1782065442000,-500.0,0.0001726,2]
[425982750,1782065442000,-500.0,0.0001726,2]
[425982749,1782065442000,-500.0,0.0001726,2]
[425982752,1782065442000,-500.0,0.0001726,2]
[425982753,1782065442000,-500.0,0.0001726,2]
[425982754,1782065442000,-500.0,0.0001726,2]
[425982762,1782065442000,-473.68,0.0001726,2]
[425982755,1782065442000,-500.0,0.0001726,2]
[425982756,1782065442000,-500.0,0.0001726,2]
[425982759,1782065442000,-500.0,0.0001726,2]
[425982761,1782065442000,-500.0,0.0001726,2]
[425982760,1782065442000,-500.0,0.0001726,2]
[425982757,1782065442000,-500.0,0.0001726,2]
[425982758,1782065442000,-500.0,0.0001726,2]
[425982766,1782065442000,-500.0,0.00017534,2]
[425982765,1782065442000,-487.84,0.00017534,2]
[425982767,1782065442000,-500.0,0.00017534,2]
[425982770,1782065442000,-500.0,0.00017534,2]
[425982769,1782065442000,-500.0,0.00017534,2]
[425982802,1782065442000,-500.0,0.00018082,2]
[425982811,1782065442000,-167.74368096,0.00018525,2]
[425982798,1782065442000,-500.0,0.00018082,2]
[425982855,1782065442000,-407.25085031,0.00019317,2]
[425982851,1782065442000,-500.0,0.00019226,2]
[425982860,1782065442000,-189.06616497,0.00019317,2]
[425982861,1782065442000,-445.09397439,0.00019317,2]
[425982859,1782065442000,-319.04365919,0.00019317,2]
[425982850,1782065442000,-356.74993793,0.00019226,2]
[425982857,1782065442000,-543.99489471,0.00019317,2]
[425982863,1782065442000,-958.0,0.00019415,2]
[425982873,1782065442000,-487.0,0.000195,2]
[425982862,1782065442000,-151.0,0.000194,2]
[425982870,1782065442000,-487.0,0.000195,2]
[425982868,1782065442000,-487.0,0.000195,2]
[425982869,1782065442000,-487.0,0.000195,2]
[425982871,1782065442000,-487.0,0.000195,2]
[425982872,1782065442000,-487.0,0.000195,2]
[425982865,1782065442000,-1418.0,0.00019415,2]
[425982864,1782065442000,-1841.0,0.00019415,2]
[425982867,1782065442000,-300.0,0.000195,2]
[425982866,1782065442000,-350.4,0.0001949,3]
[425982876,1782065442000,-487.0,0.000195,2]
[425982874,1782065442000,-487.0,0.000195,2]
[425982877,1782065442000,-487.0,0.000195,2]
[425982882,1782065442000,-500.0,0.00019596,2]
[425982881,1782065442000,-500.0,0.00019596,2]
[425982879,1782065442000,-300.0,0.00019589,3]
[425982878,1782065442000,-892.63,0.000195,2]
[425982796,1782065442000,-500.0,0.00018082,2]
[425982856,1782065442000,-309.54942759,0.00019317,2]
[425982854,1782065442000,-160.0,0.00019314,3]
[425982875,1782065442000,-487.0,0.000195,2]
[425982858,1782065442000,-329.85234454,0.00019317,2]
[425982853,1782065442000,-335.48736191,0.00019298,2]
[425982817,1782065442000,-271.99744735,0.00018544,2]
[425982819,1782065442000,-164.92617227,0.00018544,2]
[425982821,1782065442000,-159.52182959,0.00018544,2]
[425982825,1782065442000,-243.352,0.00018774,2]
[425982826,1782065442000,-151.0,0.000188,2]
[425982880,1782065442000,-500.0,0.00019596,2]
[425982824,1782065442000,-186.0,0.00018565,2]
[425982827,1782065442000,-151.5,0.00019051,2]
[425982830,1782065442000,-191.00058308,0.00019051,2]
[425982831,1782065442000,-151.5,0.00019051,2]
[425982828,1782065442000,-151.5,0.00019051,2]
[425982832,1782065442000,-215.08476634,0.00019051,2]
[425982833,1782065442000,-248.72329838,0.00019051,2]
[425982823,1782065442000,-222.5469872,0.00018544,2]
[425982836,1782065442000,-500.0,0.00019226,2]
[425982834,1782065442000,-151.0,0.000191,2]
[425982849,1782065442000,-500.0,0.00019226,2]
[425982848,1782065442000,-500.0,0.00019226,2]
[425982852,1782065442000,-151.89441419,0.00019226,2]
[425982843,1782065442000,-226.39494045,0.00019226,2]
[425982847,1782065442000,-500.0,0.00019226,2]
[425982844,1782065442000,-500.0,0.00019226,2]
[425982846,1782065442000,-500.0,0.00019226,2]
[425982845,1782065442000,-500.0,0.00019226,2]
[425982835,1782065442000,-500.0,0.00019226,2]
[425982842,1782065442000,-500.0,0.00019226,2]
[425982840,1782065442000,-500.0,0.00019226,2]
[425982838,1782065442000,-500.0,0.00019226,2]
[425982910,1782065443000,-500.0,0.00019599,2]
[425982911,1782065443000,-500.0,0.00019599,2]
[425982908,1782065443000,-500.0,0.00019599,2]
[425982913,1782065443000,-500.0,0.00019599,2]
[425982912,1782065443000,-500.0,0.00019599,2]
[425982914,1782065443000,-500.0,0.00019599,2]
[425982917,1782065443000,-500.0,0.00019599,2]
[425982916,1782065443000,-500.0,0.00019599,2]
[425982909,1782065443000,-410.37684992,0.00019599,2]
[425982918,1782065443000,-948.1836817,0.00019629,2]
[425982923,1782065443000,-168.38928221,0.00019779,2]
[425982919,1782065443000,-500.0,0.00019698,2]
[425982920,1782065443000,-151.0,0.000197,2]
[425982931,1782065443000,-2272.80032366,0.00019824,2]
[425982922,1782065443000,-227.18572246,0.00019779,2]
[425982929,1782065443000,-503.23104287,0.00019813,2]
[425982930,1782065443000,-167.34626314,0.00019821,2]
[425982925,1782065443000,-151.0,0.000198,2]
[425982926,1782065443000,-151.0,0.000198,2]
[425982907,1782065443000,-340.63,0.00019599,2]
[425982924,1782065443000,-10000.0,0.000198,2]
[425982915,1782065443000,-280.74,0.00019599,2]
[425982906,1782065443000,-500.0,0.00019599,2]
[425982888,1782065443000,-500.0,0.00019596,2]
[425982902,1782065443000,-500.0,0.00019599,2]
[425982927,1782065443000,-212.61,0.00019809,2]
[425982885,1782065443000,-500.0,0.00019596,2]
[425982883,1782065443000,-500.0,0.00019596,2]
[425982884,1782065443000,-500.0,0.00019596,2]
[425982886,1782065443000,-500.0,0.00019596,2]
[425982889,1782065443000,-500.0,0.00019596,2]
[425982887,1782065443000,-1012.44,0.00019596,2]
[425982891,1782065443000,-548.51450753,0.00019597,2]